[Event "XV American Continental 2022"]
[Site "San Salvador"]
[Date "2022.05.05"]
[Round "5.5"]
[White "Krysa, Leandro"]
[Black "Munoz Sanchez, Miguel"]
[Result "1-0"]
[ECO "A43"]
[WhiteElo "2525"]
[BlackElo "2226"]
[Annotator "TA"]
[PlyCount "57"]
[EventDate "2022.05.02"]
[EventCountry "ESA"]
[SourceTitle "playchess.com"]
[Source "ChessBase"]
[SourceQuality "1"]
[TimeControl "40/5400+30:1800+30"]

{[%evp 9,57,28,45,49,59,39,66,60,75,81,110,104,152,149,150,146,168,176,210,205,238,271,300,305,400,375,631,196,545,543,546,538,545,530,606,610,642,660,726,667,766,758,723,726,927,912,877,859,1341,1149]} 1. d4 {[%emt 0:00:18]} Nf6 {[%emt 0:00:15]} 2. Nf3 {[%emt 0:00:13]} c5 {[%emt 0:00:29]} 3. d5 {[%emt 0:00:23]} e6 {[%emt 0:00:16]} 4. Nc3 {[%emt 0:01:54]} exd5 {[%emt 0:05:57]} 5. Nxd5 {[%emt 0:00:07]} Be7 {[%emt 0:01:23]} 6. Bf4 {[%emt 0:04:34] Black must now prevent Bc7. A43: Schmid Benoni.} Nxd5 {[%emt 0:03:00]} 7. Qxd5 {[%emt 0:00:04]} Nc6 {[%emt 0:00:12]} 8. O-O-O {[%emt 0:05:44] White is slightly better.} O-O {[%emt 0:02:29]} 9. Bd6 {[%emt 0:04:38] 0x0.001ddfeca605dp-1022s more active pieces. The black rooks are badly placed.} Qa5 {[%emt 0:06:20]} 10. a3 $1 {[%emt 0:05:28]} Re8 {[%emt 0:05:49] [#]} ({Black should try} 10... Bxd6 11. Qxd6 Re8) 11. Ne5 $146 {[%emt 0:14:22]} ({Predecessor:} 11. e3 Bxd6 12. Qxd6 Re6 13. Qg3 Rg6 14. Qh4 Rh6 15. Qg5 Rg6 16. Qd5 Ne7 17. Qe4 {1-0 (41) Szekeres,R (2259)-Radics,L (2015) Zalakaros 2012}) 11... Nxe5 {[%emt 0:08:18]} 12. Qxe5 {[%emt 0:00:44]} Kf8 {[%emt 0:00:08] [#]} 13. e3 $1 {[%emt 0:07:09] Bc4 is the strong threat.} Qb6 {[%emt 0:11:34]} 14. Qg3 Kg8 {[%emt 0:13:10]} 15. Bc4 {[%emt 0:17:35] aiming for Qe5.} ({But not} 15. Qe5 $6 Qd8 16. Qxc5 (16. Bxc5 Bf6 $16) 16... Bxd6 17. Rxd6 (17. Qxd6 Re6 $16) 17... Re6) 15... Bf6 {[%emt 0:00:16] [#] Prevents Qe5.} 16. c3 $1 {[%emt 0:00:32]} Qa5 {[%emt 0:01:43]} 17. e4 {[%emt 0:06:14] Hoping for e5.} b5 $2 {[%emt 0:09:07]} (17... Qd8 18. Qf3 Bg5+ 19. Kb1 Qf6) 18. e5 $2 $40 {[%emt 0:05:18][%mdl 128] White goes for the king.} Be7 $2 {[%emt 0:07:38] [#]} (18... Bg5+ 19. Qxg5 bxc4) 19. Bxf7+ $1 $18 {[%emt 0:01:45][%mdl 512] White is clearly winning.} Kxf7 {[%emt 0:00:26]} 20. Qf3+ {[%emt 0:00:15]} Kg8 {[%emt 0:01:00][%cal Oe7d6]} 21. Qxa8 {[%emt 0:00:15]} Bg5+ {[%emt 0:04:00]} 22. f4 {[%emt 0:01:49]} Bxf4+ {[%emt 0:00:12]} 23. Kb1 {[%emt 0:00:05]} b4 {[%emt 0:02:54]} 24. Qd5+ {[%emt 0:01:59]} Re6 {[%emt 0:00:23]} 25. Rhf1 {[%emt 0:01:26]} g5 {[%emt 0:01:26]} 26. cxb4 {[%emt 0:05:26][%cal Bc3b4,Bb4b5][%mdl 32]} Qa6 {[%emt 0:00:14]} 27. g3 {[%emt 0:01:57]} Bb7 {[%emt 0:00:32]} 28. Qxc5 {[%emt 0:00:20]} Bg2 {[%emt 0:03:02]} 29. b5 {[%emt 0:00:25] Black did not feel at home in the position after the opening.  Weighted Error Value: White=0.32/Black=0.64} 1-0

[Event "XV American Continental 2022"]
[Site "San Salvador"]
[Date "2022.05.05"]
[Round "5.6"]
[White "Sarkar, Justin"]
[Black "Kaidanov, Gregory"]
[Result "1/2-1/2"]
[ECO "D50"]
[WhiteElo "2325"]
[BlackElo "2556"]
[Annotator "TA"]
[PlyCount "97"]
[EventDate "2022.05.02"]
[EventCountry "ESA"]
[SourceTitle "playchess.com"]
[Source "ChessBase"]
[SourceQuality "1"]
[TimeControl "40/5400+30:1800+30"]

{[%evp 9,97,9,22,-7,0,0,0,0,0,-13,-10,-22,-21,-29,-14,-28,-30,-13,0,0,0,-25,0,-3,0,0,0,0,0,0,0,0,0,-1,-9,-29,-11,-47,-41,-48,-41,-35,-37,-112,-33,-14,-20,-25,-29,-25,-7,-7,-7,-12,0,-12,-16,-8,0,0,0,0,0,0,0,0,0,0,0,0,0,0,0,0,0,0,0,0,0,0,0,0,0,0,0,0,0,0,0,0]} 1. d4 {[%emt 0:00:21]} d5 {[%emt 0:00:04]} 2. c4 {[%emt 0:00:14]} e6 {[%emt 0:00:05]} 3. Nc3 {[%emt 0:00:46]} Nf6 {[%emt 0:00:06]} 4. Bg5 {[%emt 0:03:17]} dxc4 {[%emt 0:00:39]} 5. e3 {[%emt 0:01:02]} c5 {[%emt 0:00:29]} 6. dxc5 {[%emt 0:01:07] D50: Queen's Gambit Declined: Dutch-Peruvian Gambit.} Qxd1+ {[%emt 0:00:54]} 7. Rxd1 {[%emt 0:00:07]} Bxc5 {[%emt 0:00:17]} 8. Bxc4 {[%emt 0:00:58]} Nbd7 {[%emt 0:07:47]} 9. Nge2 {[%emt 0:04:07]} a6 {[%emt 0:02:04]} 10. a4 {[%emt 0:01:22]} b6 {[%emt 0:02:45]} 11. O-O {[%emt 0:06:43]} Bb7 {[%emt 0:00:28] [#]} 12. Nc1 $146 {[%emt 0:00:53]} ({Predecessor:} 12. h3 Rc8 13. Bd3 h6 14. Bf4 g5 15. Bh2 Ke7 16. e4 a5 17. e5 Nd5 18. Nb5 {0-1 (57) Ylipartanen,J (2063)-Rajala,O (2036) ICCF email 2017}) 12... Rc8 {[%emt 0:04:01][%cal Oc5e3]} 13. Be2 {[%emt 0:00:35]} Bb4 {[%emt 0:09:39]} 14. N1a2 {[%emt 0:00:34]} Be7 {[%emt 0:00:12]} 15. f3 {[%emt 0:05:15]} Ne5 {[%emt 0:06:37]} 16. e4 {[%emt 0:02:39]} Nfd7 {[%emt 0:08:07]} 17. Bxe7 {[%emt 0:00:37]} Kxe7 {[%emt 0:00:06]} 18. f4 {[%emt 0:08:00]} Nc4 {[%emt 0:04:43]} 19. Rd4 {[%emt 0:00:35]} Na5 {[%emt 0:03:58]} ({Don't play} 19... Nxb2 20. Rb1 $16 (20. Rb4 Nxa4 21. Rxa4 Nc5 $16)) 20. Rfd1 {[%emt 0:00:44]} Rhd8 {[%emt 0:07:30]} 21. Kf2 Nb3 {[%emt 0:14:39]} 22. Rb4 {[%emt 0:06:16]} Nbc5 {[%emt 0:00:20]} 23. e5 {[%emt 0:03:26]} a5 {[%emt 0:03:02]} 24. Rbd4 {[%emt 0:00:30]} f6 {[%emt 0:01:25]} 25. exf6+ {[%emt 0:00:22]} Nxf6 {[%emt 0:01:34]} 26. Bf3 {[%emt 0:05:06]} (26. Rxd8 $15 Rxd8 27. Rxd8 Kxd8 28. b4 Nfe4+ 29. Nxe4 Nxe4+ 30. Ke3) 26... Bxf3 {[%emt 0:02:59]} (26... Rxd4 $17 27. Rxd4 Bxf3 28. Kxf3 Nb3) 27. Rxd8 $15 {[%emt 0:02:38]} Rxd8 {[%emt 0:01:13]} 28. Rxd8 {[%emt 0:00:18]} Kxd8 {[%emt 0:00:17]} 29. Kxf3 $17 {[%emt 0:00:06][%mdl 4096] Endgame KNN-KNN} Nd3 {[%emt 0:00:29]} 30. b3 {[%emt 0:00:52] The position is equal.} Kd7 {[%emt 0:00:46]} 31. g3 {[%emt 0:01:09]} Kd6 {[%emt 0:02:18]} 32. Ke2 {[%emt 0:03:36]} Nc5 {[%emt 0:01:57]} 33. b4 {[%emt 0:03:34]} axb4 {[%emt 0:01:33]} 34. Nxb4 {[%emt 0:00:04]} Nfe4 {[%emt 0:01:03]} 35. Nba2 {[%emt 0:00:23]} Nxc3+ {[%emt 0:04:11]} 36. Nxc3 $11 {[%emt 0:00:02] KN-KN} Na6 {[%emt 0:00:53]} 37. Ne4+ {[%emt 0:08:32]} Kd5 {[%emt 0:00:16]} 38. Kd3 {[%emt 0:01:32]} h6 {[%emt 0:00:22]} 39. h3 {[%emt 0:10:23]} Nc7 {[%emt 0:00:45]} 40. Nd2 {[%emt 0:04:25]} Na6 {[%emt 0:05:49] [#] White must now prevent ...Nc5+.} 41. Nb3 {[%emt 0:34:04]} h5 {[%emt 0:33:16]} 42. a5 {[%emt 0:05:23]} bxa5 {[%emt 0:00:00]} 43. Nxa5 {[%emt 0:00:00]} Nc5+ {[%emt 0:00:00]} 44. Ke3 {[%emt 0:00:00]} g6 {[%emt 0:00:00]} 45. Kf3 {[%emt 0:00:00]} e5 {[%emt 0:00:00]} 46. fxe5 {[%emt 0:00:00]} Kxe5 {[%emt 0:00:00]} 47. Nc6+ {[%emt 0:00:00]} Kf6 {[%emt 0:00:00]} 48. Nd4 {[%emt 0:00:00]} Nd7 49. Ke4 {Weighted Error Value: White=0.07 (flawless) /Black=0.06 (flawless)} 1/2-1/2

[Event "XV American Continental 2022"]
[Site "San Salvador"]
[Date "2022.05.05"]
[Round "5.7"]
[White "Morovic Fernandez, Ivan"]
[Black "Arias Gaviria, Mario Alexis"]
[Result "1-0"]
[ECO "B42"]
[WhiteElo "2495"]
[BlackElo "2181"]
[Annotator "TA"]
[PlyCount "209"]
[EventDate "2022.05.02"]
[EventCountry "ESA"]
[SourceTitle "playchess.com"]
[Source "ChessBase"]
[SourceQuality "1"]
[TimeControl "40/5400+30:1800+30"]

{[%evp 11,209,13,17,22,47,52,51,50,85,84,116,90,131,140,145,80,85,82,175,153,135,125,161,152,140,154,195,111,127,117,133,132,150,116,135,150,145,68,63,39,32,31,33,33,72,29,37,27,41,12,15,24,74,0,53,56,52,56,59,60,53,62,66,48,53,12,14,0,0,0,0,0,131,136,151,143,166,55,60,55,55,55,56,58,55,25,32,33,75,12,12,12,166,172,241,253,301,227,210,204,264,212,465,448,513,465,311,0,5089,4597,2388,1693,2919,3222,2810,496,496,0,572,0,4710,2635,1572,56,66,66,1282,1019,12843,12846,12839,12847,29950,29937,12841,8999,29944,0,12798,11026,29948,29947,29939,10,29950,29951,29944,29948,29950,29951,29951,29955,29954,29952,29955,29957,29960,29962,29963,29964,29962,29964,29967,29967,29965,29969,29968,29970,29969,29970,29974,29975,29975,29976,29976,29976,29977,29977,29977,29973,29978,29979,29981,29982,29982,29982,29982,29983,29984,29984,29984,29985,29989,29990,29991,29992,29992,29993,29996,29997]} 1. e4 {[%emt 0:00:20]} c5 {[%emt 0:01:58]} 2. Nf3 {[%emt 0:00:12]} e6 {[%emt 0:00:03]} 3. d4 {[%emt 0:02:16]} cxd4 {[%emt 0:00:03]} 4. Nxd4 {[%emt 0:00:04]} a6 {[%emt 0:00:02]} 5. Bd3 {[%emt 0:01:19]} Bc5 {[%emt 0:00:03]} 6. c3 {[%emt 0:02:57]} Nc6 {[%emt 0:10:04]} 7. Be3 {[%emt 0:17:25] [#] B42: Sicilian: Kan Variation: 5 Bd3.} Nxd4 $146 {[%emt 0:15:37]} (7... Ne5 {looks sharper.} 8. Be2 d6 9. Nd2 Nf6) ({Predecessor:} 7... Be7 8. Nd2 Nf6 9. O-O O-O 10. f4 d6 11. Kh1 Bd7 12. c4 Rc8 13. Rc1 Nxd4 14. Bxd4 b5 {½-½ (39) Golubev,M (2461)-Morchiashvili,B (2319) Chess.com INT 2021}) 8. cxd4 {[%emt 0:00:47]} Ba7 {[%emt 0:00:18]} 9. Nc3 {[%emt 0:03:17] White is slightly better.} d6 {[%emt 0:00:13]} 10. Qg4 {[%emt 0:14:16]} g6 {[%emt 0:06:14]} 11. Qg3 {[%emt 0:02:19] Inhibits e5. 0x0.000a0224ed4bdp-1022s more active pieces.} Ne7 {[%emt 0:02:23]} 12. Rd1 {[%emt 0:03:45]} Nc6 {[%emt 0:13:44]} 13. d5 {[%emt 0:03:19]} (13. Bc2 $142) 13... Bxe3 $16 {[%emt 0:01:07]} 14. Qxe3 {[%emt 0:00:30]} Ne5 {[%emt 0:01:27]} (14... exd5 $16 15. exd5+ Ne7) 15. Be2 $18 {[%emt 0:00:29]} g5 {[%emt 0:01:02]} 16. O-O Rg8 {[%emt 0:04:54]} 17. Kh1 {[%emt 0:11:15]} Bd7 {[%emt 0:06:06]} 18. Rd2 {[%emt 0:04:04]} Rg6 {[%emt 0:01:23]} 19. Qd4 {[%emt 0:10:21]} (19. dxe6 $18 Bxe6 20. Rfd1) 19... Rc8 {[%emt 0:19:28]} 20. Rfd1 {[%emt 0:03:16]} exd5 {[%emt 0:01:52]} 21. Nxd5 {[%emt 0:00:44]} ({Don't play} 21. Qxd5 Qb6 $14) 21... Rc6 {[%emt 0:00:44]} 22. b4 {[%emt 0:02:25]} b5 {[%emt 0:00:38]} 23. Ne3 {[%emt 0:05:28][%cal Oe2g4]} Qb6 {[%emt 0:01:59]} 24. Qxb6 {[%emt 0:03:42]} ({Better is} 24. Qa1 $16) 24... Rxb6 $14 25. Rc1 {[%emt 0:00:26]} (25. Nd5 $5 {[%cal Rd5b6]} Rb7 26. Ne3 $16) 25... Rc6 {[%emt 0:01:04]} 26. Rxc6 {[%emt 0:00:51]} Bxc6 {[%emt 0:00:01]} 27. f3 {[%emt 0:02:17]} Kd7 {[%emt 0:01:08]} 28. Kg1 {[%emt 0:02:12][%cal Oa2a4]} Kc7 {[%emt 0:02:46]} 29. Kf2 {[%emt 0:00:47]} h5 {[%emt 0:02:03]} 30. Nf5 {[%emt 0:00:56]} Rf6 {[%emt 0:02:44]} 31. Ke3 {[%emt 0:01:52]} Bd7 {[%emt 0:00:58]} (31... d5 $11) 32. Nd4 {[%emt 0:00:29]} ({White should play} 32. f4 $16 gxf4+ 33. Kxf4) 32... Nc6 {[%emt 0:00:41]} (32... h4 $11) 33. Nxc6 {[%emt 0:00:58]} Bxc6 {[%emt 0:00:01][%mdl 4096] Endgame KRB-KRB} 34. Bd1 {[%emt 0:00:33]} Re6 {[%emt 0:01:36]} 35. Bb3 {[%emt 0:00:04]} Re7 {[%emt 0:00:04]} 36. Bd5 {[%emt 0:00:13] aiming for Rc2.} Kb6 {[%emt 0:00:07]} 37. Bxc6 {[%emt 0:00:18]} Kxc6 {[%emt 0:00:01] KR-KR} 38. Rc2+ {[%emt 0:00:34]} Kd7 $1 {[%emt 0:01:38]} 39. Rc3 {[%emt 0:00:49]} f5 {[%emt 0:01:55]} 40. Kd4 {[%emt 0:00:58]} fxe4 {[%emt 0:00:03]} 41. fxe4 {[%emt 0:30:01]} Rf7 {[%emt 0:03:17]} (41... Ke6 $11) 42. Rf3 $1 $16 {[%emt 0:00:00]} Rg7 {[%emt 0:02:53]} 43. Kd5 {[%emt 0:00:00]} g4 {[%emt 0:02:59]} 44. Rf5 {[%emt 0:00:00]} ({White has to play} 44. Rf6 $18) 44... h4 $14 {[%emt 0:01:52]} 45. Rh5 {[%emt 0:00:00]} h3 {[%emt 0:00:11]} 46. gxh3 {[%emt 0:00:00]} gxh3 {[%emt 0:00:06]} 47. a3 {[%emt 0:00:00]} Kc7 $1 {[%emt 0:01:02]} 48. Rxh3 {[%emt 0:00:00]} Rg5+ {[%emt 0:00:04]} 49. Kd4 {[%emt 0:00:00] Hoping for Rh7+.} Rg2 $1 {[%emt 0:00:54]} 50. Rc3+ {[%emt 0:00:00]} (50. Rh8 $16) 50... Kd7 $11 {[%emt 0:02:12]} 51. h3 {[%emt 0:00:00] White wants to play e5.} Rh2 $2 {[%emt 0:00:20] [#]} (51... Ke6 $11 {and Black has nothing to worry.}) 52. e5 $1 $18 {[%emt 0:00:00]} dxe5+ {[%emt 0:01:44]} (52... Re2 {was necessary.}) 53. Kxe5 {[%emt 0:00:00]} Rh1 {[%emt 0:00:48]} 54. Kf4 {[%emt 0:00:00]} Ke7 {[%emt 0:07:42]} 55. Kg4 {[%emt 0:00:00]} Rd1 {[%emt 0:02:10]} 56. h4 {[%emt 0:03:13]} Rd4+ $2 {[%emt 0:10:50]} (56... Rd6 57. Kg5 Kf7) 57. Kg5 {[%emt 0:00:11]} Kf7 {[%emt 0:01:12]} 58. Rc7+ {[%emt 0:05:00]} Kg8 {[%emt 0:00:21]} 59. h5 $2 {[%emt 0:00:43]} (59. Rc8+ $18 Kf7 60. Rc7+ Kf8 61. Rc6) 59... a5 $2 {[%emt 0:00:25][%mdl 8192]} (59... Rd5+ $11 60. Kf6 Rd6+ 61. Kg5 Rd5+ 62. Kg6 Rd6+ 63. Kf5 Rd5+ 64. Kg4 Rd4+ 65. Kg5 Rd5+) 60. bxa5 {[%emt 0:00:34] Threatens to win with a6.} Ra4 {[%emt 0:00:01]} 61. Kg6 {[%emt 0:00:17][%cal Rc7c8]} Rg4+ {[%emt 0:00:03]} 62. Kh6 {[%emt 0:00:07] White wants to mate with a6.} Ra4 {[%emt 0:00:04]} 63. Rc8+ {[%emt 0:01:02]} (63. Rg7+ $142 Kf8 64. Ra7 Rxa3 65. Kg6 Rg3+ 66. Kf6 Rf3+ 67. Ke5) 63... Kf7 {[%emt 0:00:03]} 64. Rc7+ {[%emt 0:00:39]} Kg8 $1 {[%emt 0:00:05]} 65. Kg6 {[%emt 0:00:59]} (65. Rg7+ $142 Kf8 66. Ra7 Rxa3 67. Kg6 Rg3+ 68. Kf6 Rf3+ 69. Ke5) 65... Rg4+ {[%emt 0:00:06]} 66. Kf5 {[%emt 0:00:17]} Ra4 {[%emt 0:00:04]} 67. Rc3 $2 {[%emt 0:00:21]} (67. Ra7 $18 Rxa3 68. Ke5) 67... Rxa5 $14 {[%emt 0:00:11] ( -> ...b4+)} 68. Ke6 {[%emt 0:00:18]} Ra4 $2 {[%emt 0:01:15][%mdl 8192] [#] White leaves nothing to chance now.} (68... Kh7 $14) 69. Rb3 $1 $18 {[%emt 0:00:12]} Rh4 {[%emt 0:03:14]} 70. Rxb5 {Intending Rb4 and mate.} Ra4 {[%emt 0:00:04]} 71. Rb3 {[%emt 0:00:40] h6 would kill now.} Rh4 {[%emt 0:00:06]} 72. Kf6 {[%emt 0:01:02]} Ra4 {[%emt 0:00:29]} 73. Rg3+ {[%emt 0:00:54]} Kf8 {[%emt 0:00:55]} 74. Rb3 $2 {[%emt 0:01:11]} (74. Rh3 Ra6+ 75. Ke5 Kg7 76. Kd5 Kh6 77. Kc5 Ra8 78. Kb6 Kg7 79. h6+ Kh7 80. Kc5) 74... Ra6+ $2 {[%emt 0:00:21][%mdl 8192]} (74... Kg8 $11) 75. Kg5 {[%emt 0:00:21] Threatening mate with h6.} Kf7 {[%emt 0:01:13]} 76. Rh3 {[%emt 0:00:40]} Ra5+ {[%emt 0:00:29]} 77. Kh6 $2 {[%emt 0:00:12]} (77. Kf4 {mates} Kg7 78. Ke4 Kh6 79. Kd4 Ra4+ 80. Kc5 Ra8 81. Kb6 Kg7 82. Kb5) 77... Kg8 $2 {[%emt 0:00:23][%mdl 8192]} (77... Ra6+ $11 78. Kg5 Ra5+ 79. Kf4 Kg7) 78. Kg6 {[%emt 0:00:06] White mates.} Ra6+ {[%emt 0:00:10]} 79. Kf5 {[%emt 0:00:05]} Ra5+ {[%emt 0:00:27]} 80. Ke6 {[%emt 0:00:04]} Kg7 {[%emt 0:00:30]} 81. h6+ {[%emt 0:00:03]} Kh7 {[%emt 0:00:03]} 82. Kd6 {[%emt 0:00:04]} Ra4 {[%emt 0:00:12]} 83. Kc5 {[%emt 0:00:14]} Rf4 {[%emt 0:00:03]} 84. Kb5 {[%emt 0:00:18]} Rf5+ {[%emt 0:00:04]} 85. Kb4 {[%emt 0:00:02]} Rf4+ {[%emt 0:00:16]} 86. Kb3 {[%emt 0:00:03]} Re4 {[%emt 0:01:13]} 87. a4 {[%emt 0:00:05]} Rf4 {[%emt 0:00:07]} 88. Rh5 {[%emt 0:00:44]} Rf8 {[%emt 0:00:38]} 89. a5 {[%emt 0:00:11]} Kg6 {[%emt 0:00:17]} 90. Rh4 {[%emt 0:00:26]} Rf3+ {[%emt 0:02:09]} 91. Kb4 {[%emt 0:00:20]} Kh7 {[%emt 0:00:11]} 92. Rh5 {[%emt 0:00:56]} Rf6 {[%emt 0:00:52]} 93. Kb5 {[%emt 0:00:19]} Rf1 {[%emt 0:00:21]} 94. a6 {[%emt 0:00:11]} Rb1+ {[%emt 0:00:03]} 95. Kc6 {[%emt 0:00:06]} Rc1+ {[%emt 0:00:02]} 96. Kb6 {[%emt 0:00:16]} Rf1 {[%emt 0:00:07]} 97. a7 {[%emt 0:00:22]} Rf6+ {[%emt 0:00:08]} 98. Ka5 {[%emt 0:00:35]} Rf1 {[%emt 0:00:35]} 99. Rb5 {[%emt 0:00:18]} Rf2 {[%emt 0:00:47]} 100. Ka6 {[%emt 0:00:27]} Rf6+ {[%emt 0:00:24]} 101. Rb6 {[%emt 0:00:04]} Rf5 {[%emt 0:02:29]} 102. Rb7+ {[%emt 0:01:04]} Kg6 {[%emt 0:00:16]} 103. a8=Q {[%emt 0:00:10]} Rf6+ {[%emt 0:00:03]} 104. Rb6 {[%emt 0:00:15]} Kh7 {[%emt 0:00:04]} 105. Qe4+ {[%emt 0:00:21] Weighted Error Value: White=0.21 (precise) /Black=0.31} 1-0

[Event "XV American Continental 2022"]
[Site "San Salvador"]
[Date "2022.05.05"]
[Round "5.8"]
[White "Noboa Silva, Kevin"]
[Black "Jimenez Garcia, Emmanuel"]
[Result "0-1"]
[ECO "E21"]
[WhiteElo "2323"]
[BlackElo "2422"]
[Annotator "TA"]
[PlyCount "134"]
[EventDate "2022.05.02"]
[EventCountry "ESA"]
[SourceTitle "playchess.com"]
[Source "ChessBase"]
[SourceQuality "1"]
[TimeControl "40/5400+30:1800+30"]

{[%evp 19,134,-15,-12,-41,-37,-48,-47,-50,-41,-34,-34,-35,-39,-37,-35,-31,-44,-32,-45,-125,-121,-124,-127,-120,-112,-174,-166,-172,-170,-208,-206,-209,-212,-207,-202,-197,-179,-172,-177,-225,-222,-190,-215,-225,-198,-317,-245,-203,-154,-329,-329,-321,-321,-357,-352,-322,-193,-357,-329,-350,-342,-334,-310,-326,-306,-368,-181,-386,-395,-417,-345,-355,-327,-414,-391,-841,-841,-829,-774,-4577,-2307,-29967,-29968,-29969,-29969,-29968,-29969,-29968,-29969,-29974,-29975,-29975,-29976,-29976,-29977,-29977,-29978,-29978,-29979,-29979,-29980,-29980,-29981,-29981,-29982,-29983,-29980,-29983,-29979,-29979,-29980,-29981,-29981,-29986,-29982,-29987,-29988]} 1. d4 {[%emt 0:01:48]} Nf6 {[%emt 0:00:09]} 2. c4 {[%emt 0:00:19]} e6 {[%emt 0:00:02]} 3. Nc3 {[%emt 0:00:16]} Bb4 {[%emt 0:00:06]} 4. Nf3 {[%emt 0:02:39]} b6 {[%emt 0:02:41]} 5. Bg5 {[%emt 0:01:47]} Bb7 {[%emt 0:00:11]} 6. e3 {[%emt 0:00:39]} h6 {[%emt 0:00:06]} 7. Bxf6 {[%emt 0:00:27]} Bxc3+ {[%emt 0:00:19]} 8. bxc3 {[%emt 0:00:06]} Qxf6 {[%emt 0:00:04]} 9. Be2 {[%emt 0:00:23]} O-O {[%emt 0:01:15]} 10. O-O {[%emt 0:00:06]} d6 {[%emt 0:03:38]} 11. a4 {[%emt 0:03:39] E12: Queen's Indian: Unusual White 4th moves, 4 a3, 4 Nc3 Bb7 5 a3 and 4 Nc3 Bb7 .} (11. Bd3 {seems wilder.} c5 12. Nd2 Qg5 13. Be4) 11... Nc6 {[%emt 0:01:02]} 12. e4 {[%emt 0:12:57]} Na5 {[%emt 0:01:03] [#]} 13. Bd3 $146 {[%emt 0:01:27] Black is slightly better.} ({Predecessor:} 13. e5 Qf4 14. Ne1 dxe5 15. d5 Rad8 16. Nd3 Qxc4 17. Nxe5 Qxc3 18. Nf3 Nb3 19. Rb1 Bxd5 {0-1 (38) Carmo,L (1590)-Petters Merino,O (2064) ICCF email 2013}) 13... c5 {[%emt 0:00:32]} 14. Rc1 {[%emt 0:01:56]} cxd4 {[%emt 0:13:32]} 15. cxd4 {[%emt 0:00:39]} Rac8 {[%emt 0:00:06]} 16. Rc3 {[%emt 0:07:33]} Rc7 {[%emt 0:01:18]} 17. Qd2 {[%emt 0:08:37]} Rfc8 {[%emt 0:00:16][%cal Ra5c4]} 18. Rfc1 $1 {[%emt 0:00:12]} Bc6 {[%emt 0:09:27]} 19. c5 {[%emt 0:09:06]} (19. e5 $15 dxe5 20. Nxe5) 19... dxc5 $17 {[%emt 0:00:26]} 20. dxc5 {[%emt 0:00:10]} bxc5 (20... Bxa4 21. Qa2 Be8 22. Ba6 $15) 21. Ba6 {[%emt 0:10:24]} Bb7 {[%emt 0:15:34][%cal Bc6b7,Bb7a6,Ba6e2][%mdl 32]} 22. Re3 {[%emt 0:08:44]} Bxa6 $19 {[%emt 0:01:40]} 23. Qxa5 {[%emt 0:00:08] [#]} Qb2 $1 {[%emt 0:04:57]} 24. Rd1 {[%emt 0:05:13]} (24. Ree1 Bd3) 24... Be2 {[%emt 0:05:48]} 25. Qd2 {[%emt 0:00:12]} Qxd2 {[%emt 0:00:16]} 26. Rxd2 {[%emt 0:00:01]} Bxf3 {[%emt 0:00:58]} 27. gxf3 {[%emt 0:01:55][%mdl 4096] Endgame KRR-KRR} g5 {[%emt 0:02:31]} 28. Rc3 {[%emt 0:02:22]} c4 {[%emt 0:01:21]} 29. e5 {[%emt 0:02:40]} (29. Kg2 {was necessary.}) 29... Rc5 {[%emt 0:03:15]} 30. Rd4 {[%emt 0:00:13]} Kg7 {[%emt 0:00:12]} (30... Rxe5 31. Rdxc4 Re1+ 32. Kg2 Rxc4 33. Rxc4) 31. Kg2 {[%emt 0:04:08]} Kg6 {[%emt 0:08:02]} (31... Rxe5 32. Rdxc4 Rxc4 33. Rxc4) 32. h4 {[%emt 0:02:19]} (32. f4 {is a better defense.}) 32... gxh4 {[%emt 0:08:39]} 33. Rxh4 {[%emt 0:00:21]} h5 {[%emt 0:01:50]} ({And not} 33... Rxe5 34. Rhxc4 Rg5+ 35. Kh3) 34. Rf4 $2 {[%emt 0:01:55] This costs White the game.} (34. f4 $17 Rd5 35. Rg3+ Kf5 36. Kf3 Rd3+ 37. Ke2) 34... Rxe5 {[%emt 0:05:55]} 35. Rcxc4 {[%emt 0:01:36]} Rg5+ {[%emt 0:01:16]} 36. Kf1 {[%emt 0:00:31]} Rxc4 {[%emt 0:00:37]} 37. Rxc4 {[%emt 0:00:02] KR-KR} Kf6 {[%emt 0:01:03]} (37... a5 $142 {Hoping for ...Rf5.} 38. f4 Rd5) 38. Rb4 $2 {[%emt 0:02:00]} (38. f4 {was forced.} Rd5 39. Kg2) 38... a5 {[%emt 0:04:23]} 39. Rc4 {[%emt 0:01:45]} Rf5 {[%emt 0:01:53]} 40. Kg2 {[%emt 0:00:56]} Ke5 {[%emt 0:00:14] Prevents f4+.} 41. Kg3 {[%emt 0:32:16]} Kd5 {[%emt 0:30:12]} 42. Rc8 {[%emt 0:01:20]} Kd6 {[%emt 0:01:20]} (42... h4+ $142 43. Kg4 h3) 43. f4 $2 {[%emt 0:00:00]} (43. Ra8 {was the only chance.}) 43... h4+ {[%emt 0:00:00][%cal Bh5h4,Bh4h3][%mdl 32]} 44. Kg4 {[%emt 0:00:00] [#]} h3 $1 {[%emt 0:00:00]} 45. f3 {[%emt 0:00:00]} ({Of course not} 45. Rh8 Kc5 46. Rxh3 Kb4) 45... Rc5 {[%emt 0:00:00]} ({Not} 45... h2 $2 46. Rh8 $19) 46. Rh8 {[%emt 0:00:00]} Rc4 {[%emt 0:00:00]} 47. Kg5 $2 {[%emt 0:00:00]} (47. Kg3 Rxa4 48. Ra8) 47... Rxa4 {[%emt 0:00:00]} 48. Rxh3 {[%emt 0:00:00]} Rd4 {[%emt 0:00:00] Strongly threatening ...a4.} 49. Rh8 {[%emt 0:00:00]} Rd5+ {[%emt 0:00:00]} 50. Kg4 {[%emt 0:00:00]} Kc5 {[%emt 0:00:00] Black mates.} 51. Rf8 {[%emt 0:00:00]} Rf5 {[%emt 0:00:00]} 52. Ra8 {[%emt 0:00:00]} Kb4 {[%emt 0:00:00]} 53. Rb8+ {[%emt 0:00:00]} Rb5 {[%emt 0:00:00]} 54. Rf8 {[%emt 0:00:00]} f5+ {[%emt 0:00:00]} 55. Kg5 {[%emt 0:00:00]} a4 {[%emt 0:00:00]} 56. Ra8 {[%emt 0:00:00]} a3 {[%emt 0:00:00]} 57. Ra6 {[%emt 0:00:00]} Ra5 {[%emt 0:00:00]} 58. Rxe6 {[%emt 0:00:00]} a2 {[%emt 0:00:00]} 59. Re1 {[%emt 0:00:00]} a1=Q {[%emt 0:00:00]} 60. Rxa1 {[%emt 0:00:00]} Rxa1 {[%emt 0:00:00]} 61. Kxf5 {[%emt 0:00:00] KR-KPP} Kc5 {[%emt 0:00:00]} 62. Ke5 {[%emt 0:06:18]} Kc6 {[%emt 0:00:00]} 63. Ke6 {[%emt 0:00:57]} Kc7 {[%emt 0:01:47]} 64. f5 {[%emt 0:00:25]} Kd8 {[%emt 0:00:07]} 65. Kf7 {[%emt 0:00:09]} Rf1 {[%emt 0:00:57]} 66. f6 {[%emt 0:00:28]} Rxf3 {[%emt 0:00:07]} 67. Kg7 {[%emt 0:00:14]} Ke8 {[%emt 0:00:09] Weighted Error Value: White=0.59/Black=0.10 (very precise)} 0-1